fUST/lending_fUST_20251127
["ID","MTS","AMOUNT","RATE_DAILY","PERIOD"]
[394950520,1764191456138,-934.99152181,0.00014247,2]
[394950521,1764191456147,-1000.0,0.00014247,2]
[394950522,1764191456157,-1000.0,0.00014247,2]
[394950523,1764191456166,-1093.9483069,0.00014247,2]
[394950524,1764191456175,-221.00983237,0.00014247,2]
[394950525,1764191456184,-1000.0,0.00014247,2]
[394950526,1764191456195,-1000.0,0.00014247,2]
[394950527,1764191456204,-1000.0,0.00014247,2]
[394950528,1764191456213,-1000.0,0.00014247,2]
[394950529,1764191456222,-251.45014542,0.00014247,2]
[394950530,1764191456231,-522.31552349,0.00014247,2]
[394950531,1764191456241,-1000.0,0.00014247,2]
[394950532,1764191456250,-1000.0,0.00014247,2]
[394950533,1764191456259,-518.98120833,0.00014247,2]
[394950534,1764191456269,-1000.0,0.00014247,2]
[394950535,1764191456278,-3500.0,0.0001426,2]
[394950536,1764191456288,-175.67,0.00014283,2]
[394950537,1764191456297,-260.0,0.00014334,2]
[394950538,1764191456307,-175.67,0.00014393,2]
[394950539,1764191456316,-251.11897888,0.00014476,2]
[394950540,1764191456325,-500.0,0.00014525,2]
[394950541,1764191456336,-158.9081057,0.00014563,2]
[394950542,1764191456346,-1152.0,0.00014571,2]
[394950543,1764191456355,-175.65877232,0.00014667,2]
[394950544,1764191456364,-160.0,0.00014794,2]
[394950545,1764191456373,-200.0,0.00014794,2]
[394950546,1764191456383,-200.0,0.00014794,2]
[394950547,1764191456393,-1145.15718956,0.00014795,2]
[394950548,1764191456403,-1500.0,0.00014795,2]
[394950549,1764191456413,-1500.0,0.00014795,2]
[394950550,1764191456423,-204.82104941,0.00014795,2]
[394950551,1764191456435,-1500.0,0.00014795,2]
[394950552,1764191456445,-1020.2180418,0.00014795,2]
[394950553,1764191456455,-1360.53885543,0.00014795,2]
[394950554,1764191456467,-1500.0,0.00014795,2]
[394950555,1764191456476,-1414.94007014,0.00014795,2]
[394950556,1764191456487,-655.91276897,0.00014795,2]
[394950557,1764191456496,-1500.0,0.00014795,2]
[394950558,1764191456508,-1500.0,0.00014795,2]
[394950559,1764191456518,-1500.0,0.00014795,2]
[394950560,1764191456527,-1500.0,0.00014795,2]
[394950561,1764191456536,-1500.0,0.00014795,2]
[394950562,1764191456545,-1500.0,0.00014795,2]
[394950563,1764191456556,-1500.0,0.00014795,2]
[394950564,1764191456566,-1500.0,0.00014795,2]
[394950565,1764191456576,-1514.51972693,0.00014795,2]
[394950566,1764191456587,-1500.0,0.00014795,2]
[394950567,1764191456598,-700.73706143,0.00014795,2]
[394950568,1764191456607,-1500.0,0.00014795,2]
[394950569,1764191456617,-1500.0,0.00014795,2]
[394950570,1764191456627,-1068.12968006,0.00014795,2]
[394950571,1764191456637,-1500.0,0.00014795,2]
[394950572,1764191456647,-1500.0,0.00014795,2]
[394950573,1764191456656,-1500.0,0.00014795,2]
[394950574,1764191456666,-1500.0,0.00014795,2]
[394950575,1764191456675,-1500.0,0.00014795,2]
[394950576,1764191456685,-1500.0,0.00014795,2]
[394950577,1764191456695,-1500.0,0.00014795,2]
[394950578,1764191456705,-1500.0,0.00014795,2]
[394950579,1764191456714,-1500.0,0.00014795,2]
[394950580,1764191456724,-1500.0,0.00014795,2]
[394950581,1764191456733,-1500.0,0.00014795,2]
[394950582,1764191456742,-1500.0,0.00014795,2]
[394950583,1764191456751,-1500.0,0.00014795,2]
[394950584,1764191456761,-1593.22543266,0.00014795,2]
[394950585,1764191456770,-1500.0,0.00014795,2]
[394950586,1764191456780,-1500.0,0.00014795,2]
[394950587,1764191456789,-1631.63122973,0.00014795,2]
[394950588,1764191456799,-1500.0,0.00014795,2]
[394950589,1764191456808,-1500.0,0.00014795,2]
[394950590,1764191456818,-1500.0,0.00014795,2]
[394950591,1764191456828,-1500.0,0.00014795,2]
[394950592,1764191456839,-1500.0,0.00014795,2]
[394950593,1764191456849,-1500.0,0.00014795,2]
[394950594,1764191456859,-1500.0,0.00014795,2]
[394950595,1764191456868,-1500.0,0.00014795,2]
[394950596,1764191456877,-1500.0,0.00014795,2]
[394950597,1764191456886,-1500.0,0.00014795,2]
[394950598,1764191456895,-1500.0,0.00014795,2]
[394950599,1764191456906,-4000.0,0.00014808,2]
[394950600,1764191456915,-360.0,0.00014882,2]
[394950601,1764191456924,-591.8932859,0.000149,2]
[394950602,1764191456933,-1000.0,0.0001498,2]
[394950603,1764191456942,-244.0,0.0001498,2]
[394950604,1764191456951,-1013.65239339,0.00015,2]
[394950605,1764191456960,-453.14339131,0.00015,2]
[394950606,1764191456969,-375.24917426,0.00015,2]
[394950607,1764191456979,-260.4103811,0.00015024,2]
[394950608,1764191456988,-180.91415331,0.00015068,2]
[394950609,1764191456998,-3333.0,0.00015068,2]
[394950610,1764191457007,-1659.42045657,0.00015068,2]
[394950611,1764191457017,-417.176759,0.00015068,2]
[394950612,1764191457027,-800.0,0.00015068,2]
[394950613,1764191457037,-500.0,0.00015173,2]
[394950614,1764191457048,-162.8801038,0.00015173,2]
[394950615,1764191457059,-315.28509568,0.00015173,2]
[394950616,1764191457069,-200.0,0.00015173,2]
[394950617,1764191457078,-100000.0,0.00015174,2]
[394950618,1764191457087,-500.0,0.0001521,2]
[394950619,1764191457096,-568.12709156,0.00015226,2]
[394950620,1764191457105,-500.0,0.000153,2]
[394950621,1764191457114,-200.0,0.00015341,2]
[394950622,1764191457124,-714.18,0.00015342,2]
[394950623,1764191457136,-2000.0,0.00015342,2]
[394950624,1764191457146,-2000.0,0.00015342,2]
[394950625,1764191457156,-2083.20914486,0.00015342,2]
[394950626,1764191457167,-2000.0,0.00015342,2]
[394950627,1764191457177,-2000.0,0.00015342,2]
[394950628,1764191457188,-2000.0,0.00015342,2]
[394950629,1764191457199,-2000.0,0.00015342,2]
[394950630,1764191457209,-2000.0,0.00015342,2]
[394950631,1764191457219,-2000.0,0.00015342,2]
[394950632,1764191457229,-2000.0,0.00015342,2]
[394950633,1764191457240,-2000.0,0.00015342,2]
[394950634,1764191457250,-166.0846123,0.00015342,2]
[394950635,1764191457259,-2000.0,0.00015342,2]
[394950636,1764191457269,-2000.0,0.00015342,2]
[394950637,1764191457279,-2000.0,0.00015342,2]
[394950638,1764191457289,-275.70003074,0.00015342,2]
[394950639,1764191457299,-2000.0,0.00015342,2]
[394950640,1764191457308,-2000.0,0.00015342,2]
[394950641,1764191457317,-542.54154215,0.00015342,2]
[394950642,1764191457327,-2000.0,0.00015342,2]
[394950643,1764191457338,-950.37342563,0.00015342,2]
[394950644,1764191457347,-2000.0,0.00015342,2]
[394950645,1764191457357,-2000.0,0.00015342,2]
[394950646,1764191457367,-2000.0,0.00015342,2]
[394950647,1764191457376,-2000.0,0.00015342,2]
[394950648,1764191457386,-2000.0,0.00015342,2]
[394950649,1764191457395,-2000.0,0.00015342,2]
[394950650,1764191457405,-751.00975388,0.00015342,2]
[394950651,1764191457415,-2000.0,0.00015342,2]
[394950652,1764191457425,-2000.0,0.00015342,2]
[394950653,1764191457438,-2000.0,0.00015342,2]
[394950654,1764191457538,-908.95161242,0.00015342,2]
[394950655,1764191457548,-1999.69874635,0.00015342,2]
[394950656,1764191457557,-2000.0,0.00015342,2]
[394950657,1764191457567,-2000.0,0.00015342,2]
[394950658,1764191457576,-621.60403977,0.00015342,2]
[394950659,1764191457587,-2000.0,0.00015342,2]
[394950660,1764191457596,-2000.0,0.00015342,2]
[394950661,1764191457606,-1221.59443648,0.00015342,2]
[394950662,1764191457615,-1825.40685241,0.00015342,2]
[394950663,1764191457625,-2000.0,0.00015342,2]
[394950664,1764191457634,-4500.0,0.00015356,2]
[394950665,1764191457643,-460.0,0.0001543,2]
[394950666,1764191457652,-150.0,0.00015512,2]
[394950667,1764191457661,-270.0455652,0.00015572,2]
[394950668,1764191457671,-1000.0,0.00015584,2]
[394950669,1764191457680,-3333.0,0.00015616,2]
[394950670,1764191457689,-500.0,0.00015651,2]
[394950671,1764191457702,-353.4974844,0.00015667,2]
[394950672,1764191457711,-160.0,0.00015667,2]
[394950673,1764191457720,-500.0,0.00015721,2]
[394950674,1764191457729,-500.0,0.000158,2]
[394950675,1764191457738,-208.95403997,0.00015823,2]
[394950676,1764191457748,-200.0,0.00015889,2]
[394950677,1764191457757,-1132.99273853,0.0001589,2]
[394950678,1764191457767,-2500.0,0.0001589,2]
[394950679,1764191457776,-1624.84544993,0.0001589,2]
[394950680,1764191457785,-2500.0,0.0001589,2]
[394950681,1764191457795,-1612.92656333,0.0001589,2]
[394950682,1764191457804,-1056.17772392,0.0001589,2]
[394950683,1764191457813,-2500.0,0.0001589,2]
[394950684,1764191457822,-599.90564448,0.0001589,2]
[394950685,1764191457832,-2500.0,0.0001589,2]
[394950686,1764191457841,-1483.43494744,0.0001589,2]
[394950687,1764191457851,-2500.0,0.0001589,2]
[394950688,1764191457860,-2006.871955,0.0001589,2]
[394950689,1764191457871,-1984.03486504,0.0001589,2]
[394950690,1764191457880,-2500.0,0.0001589,2]
[394950691,1764191457890,-272.96690041,0.0001589,2]
[394950692,1764191457899,-2500.0,0.0001589,2]
[394950693,1764191457908,-2500.0,0.0001589,2]
[394950694,1764191457917,-2500.0,0.0001589,2]
[394950695,1764191457927,-398.07703259,0.0001589,2]
[394950696,1764191457936,-2500.0,0.0001589,2]
[394950697,1764191457945,-1791.09560258,0.0001589,2]
[394950698,1764191457955,-1273.8233717,0.0001589,2]
[394950699,1764191457964,-2500.0,0.0001589,2]
[394950700,1764191457974,-271.12981152,0.0001589,2]
[394950701,1764191457984,-2500.0,0.0001589,2]
[394950702,1764191457994,-2500.0,0.0001589,2]
[394950703,1764191458003,-2500.0,0.0001589,2]
[394950704,1764191458013,-1526.82640455,0.0001589,2]
[394950705,1764191458022,-707.19660037,0.0001589,2]
[394950706,1764191458032,-1756.8303839,0.0001589,2]
[394950707,1764191458042,-5000.0,0.00015904,2]
[394950708,1764191458052,-560.0,0.00015978,2]
[394950709,1764191458063,-1500.0,0.00015995,2]
[394950710,1764191458074,-214.74742631,0.00016,2]
[394950711,1764191458084,-1613.0,0.00016028,2]
[394950712,1764191458093,-280.03725112,0.0001612,2]
[394950713,1764191458103,-635.858,0.00016122,2]
[394950714,1764191458113,-1600.0,0.00016164,2]
[394950715,1764191458123,-3333.0,0.00016164,2]
[394950716,1764191458133,-341.18447466,0.00016219,2]
[394950717,1764191458142,-2000.0,0.00016405,2]
[394950718,1764191458151,-300.0,0.00016411,2]
[394950719,1764191458160,-200.0,0.00016437,2]
[394950720,1764191458170,-714.18,0.00016438,2]
[394950721,1764191458179,-500.0,0.00016438,2]
[394950722,1764191458188,-589.28713546,0.00016438,2]
[394950723,1764191458197,-151.0,0.00016438,2]
[394950724,1764191458208,-151.0,0.00016438,2]
[394950725,1764191458217,-151.0,0.00016438,2]
[394950726,1764191458226,-151.0,0.00016438,2]
[394950727,1764191458235,-151.0,0.00016438,2]
[394950728,1764191458245,-151.0,0.00016438,2]
[394950729,1764191458255,-151.0,0.00016438,2]
[394950730,1764191458264,-151.0,0.00016438,2]
[394950731,1764191458273,-151.0,0.00016438,2]
[394950732,1764191458283,-151.0,0.00016438,2]
[394950733,1764191458292,-151.0,0.00016438,2]
[394950734,1764191458301,-151.0,0.00016438,2]
[394950735,1764191458311,-151.0,0.00016438,2]
[394950736,1764191458320,-151.0,0.00016438,2]
[394950737,1764191458329,-244.68713,0.00016438,2]
[394950738,1764191458338,-151.0,0.00016438,2]
[394950739,1764191458348,-151.0,0.00016438,2]
[394950740,1764191458358,-151.0,0.00016438,2]
[394950741,1764191458368,-151.0,0.00016438,2]
[394950742,1764191458377,-151.0,0.00016438,2]
[394950743,1764191458387,-151.0,0.00016438,2]
[394950744,1764191458397,-151.0,0.00016438,2]
[394950745,1764191458407,-151.0,0.00016438,2]
[394950746,1764191458417,-151.0,0.00016438,2]
[394950747,1764191458437,-151.0,0.00016438,2]
[394950748,1764191458454,-151.0,0.00016438,2]
[394950749,1764191458468,-151.0,0.00016438,2]
[394950750,1764191458483,-151.0,0.00016438,2]
[394950751,1764191458497,-299.869202,0.00016438,2]
[394950752,1764191458513,-200.0,0.00016438,3]
[394950753,1764191458527,-200.0,0.00016438,3]
[394950754,1764191458542,-200.0,0.00016438,3]
[394950755,1764191458557,-200.0,0.00016438,3]
[394950756,1764191458572,-200.0,0.00016438,3]
[394950757,1764191458585,-200.0,0.00016438,3]
[394950758,1764191458599,-154.17807448,0.00016438,2]
[394950759,1764191458614,-300.0,0.00016438,2]
[394950760,1764191458627,-2500.0,0.00016438,2]
[394950761,1764191458639,-3000.0,0.00016438,2]
[394950762,1764191458652,-1675.36425223,0.00016438,2]
[394950763,1764191458668,-2551.61329528,0.00016438,2]
[394950764,1764191458681,-532.28713046,0.00016438,2]
[394950765,1764191458696,-3000.0,0.00016438,2]
[394950766,1764191458711,-3000.0,0.00016438,2]
[394950767,1764191458725,-1635.12278714,0.00016438,2]
[394950768,1764191458737,-2504.87600832,0.00016438,2]
[394950769,1764191458748,-3000.0,0.00016438,2]
[394950770,1764191458763,-3000.0,0.00016438,2]
[394950771,1764191458779,-3000.0,0.00016438,2]
[394950772,1764191458790,-3000.0,0.00016438,2]
[394950773,1764191458803,-3000.0,0.00016438,2]
[394950774,1764191458816,-258.68618882,0.00016438,2]
[394950775,1764191458829,-5387.16930363,0.00016452,2]
[394950776,1764191458840,-1000.0,0.00016478,2]
[394950777,1764191458854,-492.0,0.00016478,2]
[394950778,1764191458865,-660.0,0.00016526,2]
[394950779,1764191458877,-290.39862941,0.00016668,2]
[394950780,1764191458889,-3333.0,0.00016712,2]
[394950781,1764191458902,-150.0,0.00016722,2]
[394950782,1764191458915,-150.182,0.00016722,2]
[394950783,1764191458927,-150.105,0.00016722,2]
[394950784,1764191458939,-150.261,0.00016722,2]
[394950785,1764191458951,-150.0,0.00016722,2]
[394950786,1764191458965,-2195.508,0.00016722,2]
[394950787,1764191458978,-1030.285,0.00016722,2]
[394950788,1764191458989,-150.0,0.00016725,2]
[394950789,1764191459002,-908.89261495,0.00016816,2]
[394950790,1764191459013,-500.0,0.00016911,2]
[394950791,1764191459025,-600.0,0.00016959,2]
[394950792,1764191459038,-3500.0,0.00016986,2]
[394950793,1764191459051,-600.0,0.00016986,2]
[394950794,1764191459063,-518.3489393,0.00016986,2]
[394950795,1764191459075,-3500.0,0.00016986,2]
[394950796,1764191459088,-931.8907761,0.00016986,2]
[394950797,1764191459101,-3500.0,0.00016986,2]
[394950798,1764191459113,-3500.0,0.00016986,2]
[394950799,1764191459125,-489.42445728,0.00016986,2]
[394950800,1764191459137,-1644.7795511,0.00016986,2]
[394950801,1764191459148,-500.17660711,0.00017,2]
[394950802,1764191459160,-760.0,0.00017074,2]
[394950803,1764191459172,-3081.41362953,0.00017079,2]
[394950804,1764191459184,-274.0,0.00017196,2]
[394950805,1764191459197,-301.1433787,0.00017216,2]
[394950806,1764191459209,-2400.0,0.0001726,2]
[394950807,1764191459223,-3333.0,0.0001726,2]
[394950808,1764191459236,-329.0,0.00017381,2]
[394950809,1764191459249,-900.0,0.00017507,2]
[394950810,1764191459261,-411.0,0.0001752,2]
[394950811,1764191459274,-714.18,0.00017534,2]
[394950812,1764191459287,-4000.0,0.00017534,2]
[394950813,1764191459299,-900.0,0.00017534,2]
[394950814,1764191459311,-4000.0,0.00017534,2]
[394950815,1764191459324,-4000.0,0.00017534,2]
[394950816,1764191459337,-4000.0,0.00017534,2]
[394950817,1764191459349,-500.0,0.00017581,2]
[394950818,1764191459361,-2125.64585327,0.000176,2]
[394950819,1764191459373,-860.0,0.00017622,2]
[394950820,1764191459386,-184.0,0.00017631,2]
[394950821,1764191459398,-500.0,0.00017668,2]
[394950822,1764191459410,-499.3,0.00017673,2]
[394950823,1764191459423,-500.0,0.00017738,2]
[394950824,1764191459439,-200.0,0.00017799,2]
[394950825,1764191459452,-182963.96647744,0.000178,3]
[394950826,1764191459776,-11165.18155705,0.000178,3]
[394950827,1764191459814,-296.04,0.000178,3]
[394950828,1764191459836,-5270.03107429,0.00013698,2]
[394950829,1764191459846,-19560.95694905,0.000178,3]
[394950830,1764191459857,-36013.85501646,0.000178,3]
[394950831,1764191459867,-353.4974844,0.000178,3]
[394950832,1764191459877,-500.0,0.00017808,2]
[394950833,1764191459888,-500.0,0.00017808,2]
[394950834,1764191459897,-453.48876427,0.00017808,2]
[394950835,1764191459906,-3333.0,0.00017808,2]
[394950836,1764191459916,-500.0,0.00017809,2]
[394950837,1764191459925,-500.0,0.00017811,2]
[394950838,1764191459935,-500.0,0.00017944,2]
[394950839,1764191459944,-150.0,0.00018012,2]
[394950840,1764191459953,-1200.0,0.00018055,2]
[394950841,1764191459963,-4500.0,0.00018082,2]
[394950842,1764191459972,-1200.0,0.00018082,2]
[394950843,1764191459981,-4500.0,0.00018082,2]
[394950844,1764191459990,-970.35527512,0.00018082,2]
[394950845,1764191460000,-4500.0,0.00018082,2]
[394950846,1764191460009,-1000.0,0.00018126,2]
[394950847,1764191460020,-791.0,0.00018126,2]
[394950848,1764191460029,-960.0,0.0001817,2]
[394950849,1764191460039,-376.88982666,0.00018219,2]
[394950850,1764191460051,-353.4974844,0.000183,3]
[394950851,1764191460063,-500.0,0.00018311,2]
[394950852,1764191460072,-1000.0,0.00018317,5]
[394950853,1764191460082,-3200.0,0.00018356,2]
[394950854,1764191460091,-3333.0,0.00018356,2]
[394950855,1764191460101,-417.176759,0.00018493,2]
[394950856,1764191460111,-500.0,0.00018498,2]
[394950857,1764191460120,-1500.0,0.00018603,2]
[394950858,1764191460130,-714.18,0.0001863,2]
[394950859,1764191460140,-5000.0,0.0001863,2]
[394950860,1764191460150,-1500.0,0.0001863,2]
[394950861,1764191460159,-267.59206928,0.0001863,2]
[394950862,1764191460169,-4030.21651438,0.0001863,2]
[394950863,1764191460180,-969.78348562,0.0001863,2]
[394950864,1764191460190,-1060.0,0.00018718,2]
[394950865,1764191460200,-500.0,0.0001885,2]
[394950866,1764191460209,-353.4974844,0.000189,3]
[394950867,1764191460220,-302.84859387,0.000189,2]
[394950868,1764191460231,-302.78807257,0.000189,2]
[394950869,1764191460241,-3333.0,0.00018904,2]
[394950870,1764191460251,-294.19150956,0.00018934,2]
[394950871,1764191818418,209.3971154,0.0001212,6]
[394951027,1764192632324,-401.15789213,8.557e-05,2]
[394951106,1764192638308,-49.84210787,8.557e-05,2]
[394951108,1764192638317,-221.0,8.557e-05,2]
[394951110,1764192638327,-451.0,8.643e-05,2]
[394951112,1764192638336,-163.84789306,8.686e-05,2]
[394951114,1764192638345,-451.0,8.73e-05,2]
[394951116,1764192638355,-209.599,9.656e-05,2]
[394951118,1764192638364,-223.0,9.832e-05,2]
[394951121,1764192638373,-899.69099907,9.833e-05,2]
[394951123,1764192638384,-971.06999034,9.833e-05,2]
[394951164,1764192640549,-703.71172565,9.833e-05,2]
[394951191,1764192645986,-5000.0,9.734e-05,2]
[394951207,1764192646168,-2661.61000003,9.734e-05,2]
[394951211,1764192646693,-6247.61018822,9.734e-05,2]
[394951212,1764192646702,-45754.15543178,9.833e-05,2]
[394951213,1764192646718,-1671.37185316,9.833e-05,2]
[394951214,1764192646727,-591.77758134,9.833e-05,2]
[394951215,1764192646737,-500.0,9.833e-05,2]
[394951216,1764192646746,-500.0,9.833e-05,2]
[394951218,1764192646755,-500.0,9.833e-05,2]
[394951220,1764192646764,-111252.63438201,9.853e-05,2]
[394951281,1764193833086,-393.679,8.455e-05,2]
[394951282,1764193833096,-393.679,8.54e-05,2]
[394951283,1764193833107,-221.0,8.54e-05,2]
[394951284,1764193833117,-160.5709352,8.67e-05,2]
[394951285,1764193833127,-526.6451983,9.603e-05,2]
[394951286,1764193833138,-17700.71726527,9.626e-05,2]
[394951287,1764193833302,-465.415,9.626e-05,2]
[394951288,1764193833316,-628.7701,9.626e-05,2]
[394951296,1764193838422,-318.41606463,9.625e-05,2]
[394951297,1764193838431,-500.0,9.625e-05,2]
[394951298,1764193838441,-500.0,9.625e-05,2]
[394951299,1764193838450,-500.0,9.625e-05,2]
[394951300,1764193838460,-500.0,9.625e-05,2]
[394951301,1764193838469,-500.0,9.625e-05,2]
[394951302,1764193838479,-500.0,9.625e-05,2]
[394951303,1764193838489,-500.0,9.625e-05,2]
[394951304,1764193838498,-500.0,9.625e-05,2]
[394951305,1764193838508,-500.0,9.625e-05,2]
[394951306,1764193838517,-500.0,9.625e-05,2]
[394951307,1764193838527,-500.0,9.625e-05,2]
[394951308,1764193838536,-500.0,9.625e-05,2]
[394951309,1764193838546,-163.86378953,9.625e-05,2]
[394951310,1764193838555,-500.0,9.625e-05,2]
[394951311,1764193838565,-500.0,9.625e-05,2]
[394951312,1764193838575,-500.0,9.625e-05,2]
[394951313,1764193838584,-500.0,9.625e-05,2]
[394951314,1764193838594,-500.0,9.625e-05,2]
[394951315,1764193838603,-21.60921817,9.625e-05,2]
[394951316,1764193838615,-478.39078183,9.625e-05,2]
[394951317,1764193838633,-500.0,9.625e-05,2]
[394951318,1764193838645,-500.0,9.625e-05,2]
[394951319,1764193838654,-500.0,9.625e-05,2]
[394951320,1764193838664,-500.0,9.625e-05,2]
[394951321,1764193838674,-500.0,9.625e-05,2]
[394951322,1764193838683,-500.0,9.625e-05,2]
[394951323,1764193838693,-500.0,9.625e-05,2]
[394951324,1764193838702,-500.0,9.625e-05,2]
[394951325,1764193838713,-5821.36370622,9.626e-05,2]
[394951326,1764193838725,-13555.85571898,9.626e-05,2]
[394951327,1764193838737,-11827.87820953,9.626e-05,2]
[394951328,1764193838747,-500.0,9.626e-05,2]
[394951329,1764193838758,-421771.51274522,9.627e-05,2]
[394951365,1764193840729,-7965.26925915,9.627e-05,2]
[394951373,1764193840792,-498.90835404,9.627e-05,2]
[394951747,1764193845381,-4027.04752062,9.531e-05,2]
[394951748,1764193845391,-27391.13214983,9.627e-05,2]
[394951753,1764193846772,-72052.86108475,9.627e-05,2]
[394951754,1764193846886,-496.15,9.627e-05,2]
[394951765,1764194114857,164.91050607,0.00022759,56]
[394951774,1764194234138,5000.0,0.00014,10]
[394951798,1764195031693,-452.0,8.972e-05,2]
[394951799,1764195031703,-225.0,9.063e-05,2]
[394951800,1764195031712,-157.3595165,9.248e-05,2]
[394951801,1764195031722,-892.0,9.402e-05,2]
[394951802,1764195031731,-500.0,9.403e-05,2]
[394951803,1764195031741,-500.0,9.403e-05,2]
[394951804,1764195031750,-500.0,9.403e-05,2]
[394951805,1764195031760,-500.0,9.428e-05,2]
[394951806,1764195031769,-500.0,9.428e-05,2]
[394951807,1764195031778,-500.0,9.428e-05,2]
[394951808,1764195031787,-500.0,9.428e-05,2]
[394951809,1764195031796,-500.0,9.428e-05,2]
[394951810,1764195031805,-500.0,9.428e-05,2]
[394951811,1764195031819,-500.0,9.428e-05,2]
[394951812,1764195031828,-500.0,9.428e-05,2]
[394951813,1764195031838,-500.0,9.428e-05,2]
[394951814,1764195031847,-500.0,9.428e-05,2]
[394951815,1764195031857,-500.0,9.428e-05,2]
[394951817,1764195031867,-500.0,9.428e-05,2]
[394951818,1764195031876,-500.0,9.428e-05,2]
[394951819,1764195031885,-500.0,9.428e-05,2]
[394951820,1764195031895,-500.0,9.428e-05,2]
[394951821,1764195031904,-393.60984834,9.428e-05,2]
[394951822,1764195031914,-500.0,9.428e-05,2]
[394951823,1764195031923,-500.0,9.428e-05,2]
[394951824,1764195031932,-500.0,9.428e-05,2]
[394951825,1764195031941,-500.0,9.428e-05,2]
[394951826,1764195031950,-500.0,9.428e-05,2]
[394951827,1764195031959,-500.0,9.428e-05,2]
[394951828,1764195031968,-500.0,9.428e-05,2]
[394951829,1764195031978,-500.0,9.428e-05,2]
[394951830,1764195031987,-500.0,9.428e-05,2]
[394951831,1764195031996,-500.0,9.428e-05,2]
[394951832,1764195032006,-500.0,9.428e-05,2]
[394951833,1764195032015,-500.0,9.428e-05,2]
[394951834,1764195032024,-500.0,9.428e-05,2]
[394951835,1764195032034,-500.0,9.428e-05,2]
[394951836,1764195032043,-500.0,9.428e-05,2]
[394951837,1764195032053,-520.09718331,9.428e-05,2]
[394951838,1764195032062,-520.09718331,9.428e-05,2]
[394951839,1764195032071,-520.09718331,9.428e-05,2]
[394951840,1764195032081,-520.09718331,9.428e-05,2]
[394951841,1764195032090,-520.09718331,9.428e-05,2]
[394951842,1764195032100,-520.09718331,9.428e-05,2]
[394951843,1764195032110,-520.09718331,9.428e-05,2]
[394951844,1764195032120,-520.09718331,9.428e-05,2]
[394951845,1764195032130,-520.09718331,9.428e-05,2]
[394951846,1764195032139,-520.09718331,9.428e-05,2]
[394951847,1764195032148,-520.09718331,9.428e-05,2]
[394951848,1764195032158,-520.09718331,9.428e-05,2]
[394951849,1764195032167,-520.09718331,9.428e-05,2]
[394951850,1764195032177,-520.09718331,9.428e-05,2]
[394951851,1764195032186,-520.09718331,9.428e-05,2]
[394951852,1764195032196,-520.09718331,9.428e-05,2]
[394951853,1764195032205,-520.09718331,9.428e-05,2]
[394951854,1764195032215,-520.09718331,9.428e-05,2]
[394951855,1764195032225,-520.09718331,9.428e-05,2]
[394951856,1764195032240,-520.09718331,9.428e-05,2]
[394951857,1764195032249,-520.09718331,9.428e-05,2]
[394951858,1764195032259,-520.09718331,9.428e-05,2]
[394951859,1764195032268,-520.09718331,9.428e-05,2]
[394951860,1764195032277,-520.09718331,9.428e-05,2]
[394951861,1764195032287,-520.09718331,9.428e-05,2]
[394951862,1764195032296,-520.09718331,9.428e-05,2]
[394951863,1764195032305,-520.09718331,9.428e-05,2]
[394951864,1764195032315,-520.09718331,9.428e-05,2]
[394951865,1764195032489,-520.09718331,9.428e-05,2]
[394951866,1764195032499,-520.09718331,9.428e-05,2]
[394951867,1764195032508,-520.09718331,9.428e-05,2]
[394951868,1764195032517,-520.09718331,9.428e-05,2]
[394951869,1764195032526,-520.09718331,9.428e-05,2]
[394951870,1764195032536,-520.09718331,9.428e-05,2]
[394951871,1764195032545,-520.09718331,9.428e-05,2]
[394951872,1764195032554,-520.09718331,9.428e-05,2]
[394951873,1764195032563,-520.09718331,9.428e-05,2]
[394951874,1764195032572,-520.09718331,9.428e-05,2]
[394951875,1764195032581,-520.09718331,9.428e-05,2]